[Event "Hungarian Super League 2024-25"]
[Site "Hungary"]
[Date "2024.11.02"]
[Round "1.8"]
[White "Krstulovic, Alex"]
[Black "Gaal, Zsoka"]
[Result "1/2-1/2"]
[ECO "A45"]
[WhiteElo "2439"]
[BlackElo "2425"]
[Annotator "TA"]
[PlyCount "81"]
[EventDate "2024.10.30"]
[EventType "team-tourn"]
[EventCountry "HUN"]
[SourceTitle "playchess.com"]
[Source "ChessBase"]
[SourceQuality "1"]
[TimeControl "40/5400+30:1800+30"]

{[%evp 9,81,2,13,14,10,11,15,0,18,0,26,4,0,4,25,0,0,0,11,4,5,9,2,7,14,13,20,8,26,14,16,12,56,45,41,7,72,69,92,90,81,91,70,26,24,0,0,0,17,0,48,0,0,1,30,-55,-16,-10,0,0,0,0,0,0,0,0,0,0,0,0,0,0,0,0]} 1. d4 {[%emt 0:01:43]} Nf6 {[%emt 0:00:40]} 2. Bf4 {[%emt 0:01:20]} d5 {[%emt 0:00:45]} 3. e3 {[%emt 0:00:51]} e6 {[%emt 0:03:15]} 4. Nf3 {[%emt 0:00:18]} c5 {[%emt 0:00:27]} 5. Nbd2 {[%emt 0:04:10]} Qb6 {[%emt 0:00:28]} 6. Rb1 {[%emt 0:03:25]} Bd6 {[%emt 0:00:22]} 7. dxc5 {[%emt 0:02:52]} Qxc5 {[%emt 0:01:11]} 8. Bd3 {[%emt 0:06:00]} O-O {[%emt 0:06:14]} 9. O-O {[%emt 0:01:51]} b6 {[%emt 0:07:44]} 10. Bxd6 {[%emt 0:13:30]} Qxd6 {[%emt 0:00:08]} 11. e4 {[%emt 0:00:11]} Qe7 {[%emt 0:09:01]} 12. Re1 {[%emt 0:08:18]} dxe4 {[%emt 0:15:30]} 13. Nxe4 {[%emt 0:00:26]} Nbd7 {[%emt 0:04:55] [#]} 14. Nd6 $1 {[%emt 0:05:38][%cal Ob2b4]} Nc5 {[%emt 0:05:46]} 15. Nxc8 {[%emt 0:00:57]} Raxc8 {[%emt 0:04:13]} 16. Bf1 {[%emt 0:00:08][%cal Bd3f1,Bf1g2,Bg2d5][%mdl 32]} Rfd8 {[%emt 0:01:24]} 17. Qe2 {[%emt 0:00:43]} Nd5 {[%emt 0:05:42]} 18. g3 {[%emt 0:05:12]} a6 {[%emt 0:00:12]} 19. c3 {[%emt 0:03:30]} b5 {[%emt 0:01:23]} 20. Bg2 {[%emt 0:04:15]} Qf6 {[%emt 0:05:20]} 21. Rbd1 {[%emt 0:05:53][%cal Bb1d1,Bd1d4,Bd4g4][%mdl 32]} h6 {[%emt 0:01:52]} 22. Rd4 {[%emt 0:01:43]} Na4 {[%emt 0:04:06]} (22... Ne7 $11 {keeps the balance.}) 23. Ne5 $16 {[%emt 0:02:42]} Qe7 {[%emt 0:06:27] [#]} 24. Ng6 $1 {[%emt 0:07:39] White is more active.} Qf6 {[%emt 0:02:04] [#]} 25. Bxd5 $1 {[%emt 0:00:08]} Qxg6 {[%emt 0:00:42]} 26. Rg4 {[%emt 0:03:23]} Qf5 {[%emt 0:01:17]} 27. Bb7 {[%emt 0:01:09][%cal Og4f4] Threatens to win with Rf4!} Rb8 {[%emt 0:01:41]} 28. Be4 {[%emt 0:01:30]} Qf6 {[%emt 0:02:29]} 29. Bb1 {[%emt 0:01:44]} Rb6 {[%emt 0:00:43]} (29... Rbc8 $11) 30. Qe4 {[%emt 0:06:10]} (30. Rf4 $14 {was preferrable.} Qg5 31. h4) 30... g6 $11 {[%emt 0:00:44]} (30... Qf5 {simplifies} 31. Qxf5 exf5 32. Bxf5 Nxb2 33. Rd4 Rbb8) 31. Qe3 $1 {[%emt 0:06:10][%cal Og4a4] And now Rxa4! would win.} Rbd6 {[%emt 0:00:36][%cal Bb6d6,Bd6d3,Bd3d5,Bd5h5][%mdl 32]} 32. Kg2 {[%emt 0:00:38]} (32. Qxh6 $11 Rd2 (32... Nxb2 33. Bxg6 fxg6 34. Rxg6+) 33. Rf1 (33. Rf4 Qg7 $11)) 32... Nxb2 {[%emt 0:02:24]} 33. Qxh6 {[%emt 0:00:58][%cal Rb1g6] White threatens Bxg6! and mate. The position is equal.} Nd3 {[%emt 0:03:36]} ({Stronger than} 33... Qxc3 34. Bxg6 fxg6 35. Qxg6+ (35. Rxg6+ Kf7 36. Qh7+ Qg7 37. Rxg7+ Kf8 38. Qh8#) 35... Kf8 36. Rf4+ (36. Rxe6 Qc6+ 37. f3 Rxe6 $18) (36. Rxe6 Qc6+ 37. f3 Rxe6 $18)) 34. Bxd3 {[%emt 0:00:04]} Rxd3 {[%emt 0:00:05]} 35. Rf4 {[%emt 0:00:09]} Qg7 {[%emt 0:02:04]} 36. Qg5 {[%emt 0:00:30]} R8d7 {[%emt 0:01:29]} 37. c4 {[%emt 0:01:06]} bxc4 {[%emt 0:00:44]} 38. Rxc4 {[%emt 0:00:58] Rc8+ would now be deadly.} R3d5 {[%emt 0:00:26]} 39. Rc8+ {[%emt 0:01:16]} Kh7 {[%emt 0:00:04]} 40. Qh4+ {[%emt 0:00:00]} Rh5 $1 {[%emt 0:00:00]} 41. Qf4 {[%emt 0:11:45] Weighted Error Value: White=0.11 (very precise) /Black=0.12 (very precise) .  Mistake:       	White=2     	Black=2      Inaccurate:     	White=2     	Black=3      OK:         	White=13    	Black=7      Best:        	---       	Black=3      Strong:       	White=2     	Black=1} 1/2-1/2

[Event "Hungarian Super League 2024-25"]
[Site "Hungary"]
[Date "2024.11.02"]
[Round "1.9"]
[White "Pasti, Aron"]
[Black "Bodrogi, Bendeguz"]
[Result "0-1"]
[ECO "B12"]
[WhiteElo "2355"]
[BlackElo "2358"]
[Annotator "RC"]
[PlyCount "40"]
[EventDate "2024.10.30"]
[EventType "team-tourn"]
[EventCountry "HUN"]
[SourceTitle "playchess.com"]
[Source "ChessBase"]
[SourceQuality "1"]
[TimeControl "40/5400+30:1800+30"]

1. e4 {[%emt 0:00:39]} c6 {[%emt 0:00:46]} 2. d4 {[%emt 0:00:04]} d5 {[%emt 0:00:11]} 3. e5 {[%emt 0:00:14]} c5 {[%emt 0:00:21]} 4. dxc5 {[%emt 0:00:03]} e6 {[%emt 0:00:15]} 5. a3 {[%emt 0:00:05]} Bxc5 {[%emt 0:00:11]} 6. Nf3 {[%emt 0:00:10]} f6 {[%emt 0:03:51]} 7. b4 {[%emt 0:00:26]} Be7 {[%emt 0:00:11]} 8. Bb2 {[%emt 0:03:27]} a5 {[%emt 0:02:23]} 9. b5 {[%emt 0:00:07]} Nd7 {[%emt 0:00:09]} 10. c4 {[%emt 0:08:31]} fxe5 {[%emt 0:01:23]} 11. cxd5 {[%emt 0:02:28]} exd5 {[%emt 0:00:14]} 12. Qxd5 {[%emt 0:00:41]} Ngf6 {[%emt 0:00:12]} 13. Qa2 {[%emt 0:00:28]} Nb6 {[%emt 0:18:47]} 14. Nxe5 {[%emt 0:03:21]} Nfd5 {[%emt 0:02:58]} 15. Nc4 {[%emt 0:21:02]} Be6 {[%emt 0:03:22]} 16. Bxg7 {[%emt 0:08:46]} Rg8 {[%emt 0:04:48]} 17. Bd4 {[%emt 0:06:04]} Rg4 {[%emt 0:16:59]} 18. Qd2 {[%emt 0:12:28]} Nxc4 {[%emt 0:03:20]} 19. Bxc4 {[%emt 0:00:03]} Re4+ {[%emt 0:00:25]} 20. Kf1 {[%emt 0:01:02]} Nf4 {[%emt 0:00:36]} 0-1

[Event "Hungarian Super League 2024-25"]
[Site "Hungary"]
[Date "2024.11.02"]
[Round "1.10"]
[White "Lazarne Vajda, Szidonia"]
[Black "Egresi, Mate"]
[Result "1/2-1/2"]
[ECO "B10"]
[WhiteElo "2292"]
[BlackElo "2393"]
[Annotator "TA"]
[PlyCount "64"]
[EventDate "2024.10.30"]
[EventType "team-tourn"]
[EventCountry "HUN"]
[SourceTitle "playchess.com"]
[Source "ChessBase"]
[SourceQuality "1"]
[TimeControl "40/5400+30:1800+30"]

{[%evp 15,64,-31,-12,-40,-40,-31,-43,-34,-20,-46,-45,-49,-48,-63,-14,-68,-29,-35,-36,-35,-38,-18,-23,-29,-31,-37,-18,-25,-5,-12,-22,-18,-13,-20,0,-85,-97,-104,-89,-343,-325,-531,-550,-754,-121,-124,0,0,0,0,23]} 1. e4 {[%emt 0:00:36]} c6 {[%emt 0:00:35]} 2. d3 {[%emt 0:02:46]} d5 {[%emt 0:00:06]} 3. Nd2 {[%emt 0:00:09]} e5 {[%emt 0:05:23]} 4. Ngf3 {[%emt 0:01:19]} Bd6 {[%emt 0:00:15]} 5. g3 {[%emt 0:00:35]} Nf6 {[%emt 0:00:20]} 6. Bg2 {[%emt 0:00:21]} O-O {[%emt 0:00:11]} 7. O-O {[%emt 0:00:15]} Re8 {[%emt 0:01:35]} 8. h3 {[%emt 0:02:32]} Nbd7 {[%emt 0:05:39]} 9. c3 {[%emt 0:02:55]} Nf8 {[%emt 0:04:45]} 10. Re1 {[%emt 0:04:48]} Ng6 {[%emt 0:01:29]} 11. Nf1 {[%emt 0:01:58] Black is slightly better.} a5 {[%emt 0:01:36]} 12. Qc2 {[%emt 0:02:40]} h6 {[%emt 0:01:08]} 13. Be3 {[%emt 0:05:22]} Be6 {[%emt 0:24:43]} 14. N1d2 {[%emt 0:04:49]} Qc7 {[%emt 0:04:42]} (14... Qd7 $15 {is superior.} 15. Kh2 c5) 15. Kh2 {[%emt 0:02:43]} ({White should play} 15. d4 $11) 15... a4 {[%emt 0:00:31]} 16. d4 {[%emt 0:07:50]} dxe4 {[%emt 0:06:14]} (16... exd4 {is more complex.} 17. Nxd4 Bd7 18. exd5 cxd5 19. N4f3 Ne4) 17. Nxe5 {[%emt 0:01:40]} Nxe5 {[%emt 0:00:22]} 18. dxe5 {[%emt 0:00:05]} Bxe5 {[%emt 0:00:06]} 19. Nxe4 {[%emt 0:01:15]} Nxe4 {[%emt 0:02:07]} 20. Bxe4 {[%emt 0:01:00]} Qa5 {[%emt 0:08:41]} 21. Bh7+ {[%emt 0:24:00]} Kh8 {[%emt 0:00:36]} 22. Bd3 {[%emt 0:00:05]} Rad8 {[%emt 0:06:37]} 23. a3 {[%emt 0:08:21]} Bc7 {[%emt 0:09:05]} 24. Qe2 {[%emt 0:04:58]} h5 {[%emt 0:08:33]} (24... Bb6 {simplifies} 25. Bc2 Bxe3 26. Qxe3 Qb5) 25. Bd4 {[%emt 0:05:11]} (25. h4 $11) 25... h4 $17 {[%emt 0:03:28] ...Qg5 is the strong threat.} 26. Qf3 {[%emt 0:05:22][%cal Oe1e6]} Qg5 {[%emt 0:00:48] White must now prevent ...c5.} 27. Qe3 $2 {[%emt 0:04:09][%mdl 8192]} (27. Bf1 $17 {was called for.}) 27... Qh5 $19 {[%emt 0:02:10]} 28. Bf1 $2 {[%emt 0:01:24] [#]} (28. f4) 28... c5 $1 {[%emt 0:00:59][%mdl 512]} 29. Bxc5 {[%emt 0:01:35]} (29. Rac1 cxd4) 29... hxg3+ $2 {[%emt 0:01:22]} (29... Bd7 $19 {has better winning chances.} 30. Be7 Bc6) 30. fxg3 $17 {[%emt 0:00:06] [#]} Bd5 {[%emt 0:00:48]} (30... Bxh3 $2 31. Qxe8+ Rxe8 32. Rxe8+ Kh7 33. Bxh3 $19) (30... Rd5 $1 $17 {[%cal Rd5c5]} 31. Bb6 Re5 32. Bxc7 Rxe3 33. Rxe3 Bd7 34. Rxe8+ Bxe8) 31. Qf2 {[%emt 0:01:45]} Bc6 {[%emt 0:00:33]} 32. Bd4 {[%emt 0:00:58]} Qg5 {[%emt 0:00:28] Weighted Error Value: White=0.54/Black=0.29 (precise) .  Loses game:     	White=1     	---        Missed win:     	---       	Black=1      Mistake:       	White=3     	Black=1      Inaccurate:     	White=2     	Black=1      OK:         	White=9     	Black=6      Best:        	White=2     	Black=2} 1/2-1/2

[Event "Hungarian Super League 2024-25"]
[Site "Hungary"]
[Date "2024.11.02"]
[Round "1.11"]
[White "Erdos, Viktor"]
[Black "Mihok, Oliver"]
[Result "1/2-1/2"]
[ECO "B27"]
[WhiteElo "2533"]
[BlackElo "2522"]
[Annotator "TA"]
[PlyCount "61"]
[EventDate "2024.10.30"]
[EventType "team-tourn"]
[EventCountry "HUN"]
[SourceTitle "playchess.com"]
[Source "ChessBase"]
[SourceQuality "1"]
[TimeControl "40/5400+30:1800+30"]

{[%evp 9,61,53,61,58,47,56,55,47,54,58,51,46,64,61,56,59,78,68,63,6,14,20,8,10,13,7,10,11,29,18,25,9,6,10,17,0,0,0,0,0,0,0,0,0,0,0,33,19,33,29,39,39,39,39]} 1. e4 {[%emt 0:00:44]} c5 {[%emt 0:02:10]} 2. Nf3 {[%emt 0:00:07]} b6 {[%emt 0:00:12]} 3. d4 {[%emt 0:01:13]} cxd4 {[%emt 0:00:12]} 4. Nxd4 {[%emt 0:00:05]} Bb7 {[%emt 0:00:04]} 5. Nc3 {[%emt 0:00:22]} a6 {[%emt 0:00:06] Black is weak on the light squares} 6. Bg5 {[%emt 0:02:05]} Qc7 {[%emt 0:00:15]} 7. Nd5 {[%emt 0:14:08]} Qe5 {[%emt 0:00:19]} 8. Be3 {[%emt 0:00:29] [#] Black must now prevent Nf3.} Bxd5 {[%emt 0:00:21]} 9. exd5 {[%emt 0:00:08]} Qxd5 {[%emt 0:00:17]} 10. Be2 {[%emt 0:00:32] Bf3 is the strong threat.} e5 $1 {[%emt 0:00:18]} 11. Nf5 {[%emt 0:05:47][%csl LRb6,LRd5]} Qxd1+ {[%emt 0:00:49]} 12. Rxd1 {[%emt 0:00:09]} g6 {[%emt 0:00:31]} 13. Bf3 {[%emt 0:31:17] White is much more active.} Nc6 {[%emt 0:00:37]} 14. Bxc6 {[%emt 0:00:19]} ({White should try} 14. Nd6+ $14 Bxd6 15. Rxd6) 14... dxc6 $11 {[%emt 0:01:32]} 15. Nd6+ {[%emt 0:00:02]} Bxd6 {[%emt 0:05:28]} 16. Rxd6 {[%emt 0:00:04]} Ne7 {[%emt 0:04:18]} 17. Bxb6 {[%emt 0:05:26]} Rb8 {[%emt 0:04:27]} 18. Ba5 {[%emt 0:00:36]} O-O {[%emt 0:09:19]} 19. Bc3 {[%emt 0:17:18][%cal Oh2h4]} f6 {[%emt 0:10:23]} 20. Ke2 {[%emt 0:01:22]} Nd5 {[%emt 0:02:07]} 21. Rxc6 {[%emt 0:02:01]} Nxc3+ {[%emt 0:02:16]} 22. Rxc3 {[%emt 0:07:36]} Rxb2 {[%emt 0:00:06][%mdl 4096] Endgame. KRR-KRR} 23. a3 {[%emt 0:00:02]} Rd8 {[%emt 0:09:01]} 24. Rc7 {[%emt 0:01:33]} Rbb8 {[%emt 0:10:54]} 25. Rd1 {[%emt 0:03:31]} Rxd1 {[%emt 0:01:00]} 26. Kxd1 {[%emt 0:00:02] KR-KR} Rb1+ {[%emt 0:00:16]} 27. Ke2 {[%emt 0:00:16]} Ra1 {[%emt 0:00:48]} 28. Rc6 {[%emt 0:01:55][%csl LRa6,LRf6]} Rxa3 {[%emt 0:02:53]} 29. Rxf6 {[%emt 0:00:03]} a5 {[%emt 0:04:20]} 30. Re6 {[%emt 0:04:18]} Rc3 {[%emt 0:01:42]} 31. Kd2 {[%emt 0:01:01] Weighted Error Value: White=0.06 (flawless) /Black=0.04 (flawless) .  Mistake:       	White=1     	---        Inaccurate:     	---       	Black=1      OK:         	White=13    	Black=12     Best:        	White=1     	Black=4      Strong:       	---       	Black=1} 1/2-1/2

[Event "Hungarian Super League 2024-25"]
[Site "Hungary"]
[Date "2024.11.02"]
[Round "1.12"]
[White "Kovacevic, Aleksandar"]
[Black "Sahidi, Samir"]
[Result "1/2-1/2"]
[ECO "C67"]
[WhiteElo "2447"]
[BlackElo "2485"]
[Annotator "TA"]
[PlyCount "176"]
[EventDate "2024.10.30"]
[EventType "team-tourn"]
[EventCountry "HUN"]
[SourceTitle "playchess.com"]
[Source "ChessBase"]
[SourceQuality "1"]
[TimeControl "40/5400+30:1800+30"]

{[%evp 93,176,-63,-35,-72,-38,-56,-54,-66,-55,-63,-63,-75,-75,-89,-86,-158,-157,-183,-159,-164,-152,-169,-99,-91,-64,-64,-64,-64,-64,-64,-43,-50,-59,-61,-34,-64,-64,-64,-64,-64,0,-64,-64,-64,-53,-64,0,-64,0,-64,-64,-64,-39,-68,-64,-64,-64,-71,-8,-83,-91,-122,-122,-122,-59,-59,0,0,0,0,0,0,0,0,0,0,0,0,0,0,0,0,0,0,0]} 1. e4 {[%emt 0:00:42]} e5 {[%emt 0:00:52]} 2. Nf3 {[%emt 0:01:01]} Nc6 {[%emt 0:00:07]} 3. Bb5 {[%emt 0:00:13]} Nf6 {[%emt 0:00:50]} 4. O-O {[%emt 0:01:52]} Nxe4 {[%emt 0:02:26]} 5. Re1 {[%emt 0:00:27]} Nd6 {[%emt 0:00:06]} 6. Nxe5 {[%emt 0:00:17]} Be7 {[%emt 0:00:52]} 7. Bf1 {[%emt 0:00:25]} Nxe5 {[%emt 0:01:36]} 8. Rxe5 {[%emt 0:00:03]} O-O {[%emt 0:00:11]} 9. d4 {[%emt 0:00:24]} Bf6 {[%emt 0:01:42]} 10. Re1 {[%emt 0:02:28]} Re8 {[%emt 0:03:50] The main line 10...Re8 scores better than 10...Nf5. C67: Ruy Lopez: Berlin Defence: 4 0-0 Nxe4.} 11. c3 {[%emt 0:05:28]} b6 {[%emt 0:05:05]} 12. Bf4 {[%emt 0:01:10]} Rxe1 {[%emt 0:02:40]} 13. Qxe1 {[%emt 0:00:34]} Qe7 {[%emt 0:00:48]} 14. Qxe7 {[%emt 0:03:27]} Bxe7 {[%emt 0:00:07]} 15. a4 {[%emt 0:01:27]} a6 {[%emt 0:03:03]} 16. Nd2 {[%emt 0:03:18]} Bb7 {[%emt 0:01:50]} 17. a5 {[%emt 0:02:40]} b5 {[%emt 0:00:48]} 18. Nb3 {[%emt 0:00:27]} Bd5 $146 {[%emt 0:15:10]} ({Predecessor:} 18... Nc4 19. Bxc4 bxc4 20. Nd2 d5 21. Re1 Kf8 22. Bxc7 Rc8 23. Bb6 f6 24. Nf1 Kf7 {½-½ Kobalia,M (2614)-Hovhannisyan,R (2642) PNWCC Online blitz JP 12th 2020 (2)}) 19. Nc5 {[%emt 0:01:23]} Be6 {[%emt 0:00:19]} 20. Re1 {[%emt 0:07:13]} Bf8 {[%emt 0:07:02]} 21. Bd3 {[%emt 0:03:14]} c6 {[%emt 0:03:17]} 22. b3 {[%emt 0:06:04]} g6 {[%emt 0:04:51]} 23. h4 {[%emt 0:09:48]} Nf5 {[%emt 0:02:23]} 24. Nxe6 {[%emt 0:03:24]} fxe6 {[%emt 0:04:09]} 25. h5 {[%emt 0:09:01]} b4 {[%emt 0:07:12]} 26. hxg6 {[%emt 0:09:00]} hxg6 {[%emt 0:00:33]} 27. g4 {[%emt 0:01:14]} Nh4 {[%emt 0:07:37]} 28. Re3 {[%emt 0:05:54]} Be7 {[%emt 0:01:39]} 29. cxb4 {[%emt 0:10:26]} g5 {[%emt 0:02:53]} 30. Bc7 {[%emt 0:06:48]} Bxb4 {[%emt 0:04:08]} 31. Kf1 {[%emt 0:00:08]} Be7 {[%emt 0:05:10]} 32. Rh3 {[%emt 0:02:21]} Kg7 {[%emt 0:03:01]} 33. Ke2 {[%emt 0:01:07]} Bf6 {[%emt 0:00:15]} 34. f4 {[%emt 0:01:19]} Ng6 {[%emt 0:04:04]} 35. fxg5 {[%emt 0:00:12]} Bxg5 {[%emt 0:00:18]} 36. Be5+ {[%emt 0:01:05]} Nxe5 {[%emt 0:01:09]} 37. dxe5 {[%emt 0:00:28]} Ra7 {[%emt 0:00:42]} 38. Bc4 {[%emt 0:02:12]} Bd8 {[%emt 0:00:57]} 39. Bd3 {[%emt 0:00:42]} Bxa5 {[%emt 0:01:47]} 40. Ke3 {[%emt 0:00:00]} Rb7 {[%emt 0:00:00]} 41. g5 {[%emt 0:06:22]} Bc3 {[%emt 0:05:01]} 42. Rh7+ {[%emt 0:07:02]} Kg8 {[%emt 0:00:32]} 43. Bxa6 {[%emt 0:08:09]} Ra7 {[%emt 0:01:06]} 44. Bd3 {[%emt 0:00:08]} Bxe5 {[%emt 0:00:08]} 45. g6 {[%emt 0:01:21]} Bg7 {[%emt 0:00:21]} 46. Rh4 {[%emt 0:00:13]} Ra5 {[%emt 0:07:59]} 47. Ra4 {[%emt 0:00:43]} Re5+ {[%emt 0:04:45]} 48. Kf4 {[%emt 0:03:20]} Rd5 {[%emt 0:00:17]} 49. Ra8+ {[%emt 0:02:27]} Bf8 {[%emt 0:00:06]} 50. Be4 {[%emt 0:00:32]} Rd1 {[%emt 0:01:06]} 51. Rd8 {[%emt 0:01:55]} Kg7 {[%emt 0:00:52]} 52. Ke3 {[%emt 0:00:57]} Be7 {[%emt 0:02:29]} 53. Rc8 {[%emt 0:00:04]} Re1+ {[%emt 0:06:03]} 54. Kf4 {[%emt 0:01:37]} (54. Kf3 $142) 54... Kf6 $17 {[%emt 0:01:10]} 55. Bd3 {[%emt 0:00:37]} Bd6+ {[%emt 0:01:29]} 56. Kf3 {[%emt 0:00:19] [#]} Bc5 $1 {[%emt 0:00:14]} 57. Be2 {[%emt 0:00:44]} Rg1 {[%emt 0:05:33]} ({Better is} 57... Kxg6 $19 {Threatens to win with ...e5.} 58. b4 Bxb4) 58. Bd3 $17 {[%emt 0:00:41]} Bd6 {[%emt 0:01:39]} 59. Rd8 {[%emt 0:00:12]} Rg3+ {[%emt 0:00:18]} 60. Ke2 {[%emt 0:00:04]} Ke7 {[%emt 0:00:27]} 61. Rh8 {[%emt 0:00:09]} Bf4 {[%emt 0:00:46]} 62. Rh7+ {[%emt 0:00:34]} Kd6 {[%emt 0:00:09]} 63. Rf7 {[%emt 0:01:51]} Be5 {[%emt 0:00:21]} 64. Rh7 {[%emt 0:01:00]} Bd4 {[%emt 0:01:03]} 65. Rf7 {[%emt 0:00:12]} Rg2+ {[%emt 0:01:12]} 66. Kf1 {[%emt 0:00:18]} Rg3 {[%emt 0:01:27]} 67. Ke2 {[%emt 0:00:02]} Kc7 {[%emt 0:00:28]} 68. Rh7 {[%emt 0:00:36]} Kd8 {[%emt 0:01:21]} 69. Rf7 {[%emt 0:00:56]} Kc7 {[%emt 0:00:34]} 70. Rh7 $1 {[%emt 0:00:05]} Kd6 {[%emt 0:00:11]} 71. Rf7 $1 {[%emt 0:00:08]} Rh3 {[%emt 0:00:23]} 72. Ba6 {[%emt 0:00:45]} Rh8 {[%emt 0:00:47]} (72... Rxb3 $6 73. Bc8 $11) 73. Kd2 {[%emt 0:01:27]} Rg8 {[%emt 0:00:20]} 74. Bd3 {[%emt 0:00:15]} Rg7 {[%emt 0:00:15]} 75. Rf4 {[%emt 0:01:10]} e5 {[%emt 0:00:17]} (75... Be5 $17 76. Rf8 Kc5) 76. Rf7 {[%emt 0:01:03]} (76. Rh4 $11) 76... Rxf7 $17 {[%emt 0:00:13]} 77. gxf7 {[%emt 0:00:01]} Ke7 {[%emt 0:00:06]} 78. Bf5 {[%emt 0:00:09]} d6 {[%emt 0:00:06]} (78... Kxf7 $6 79. Bxd7 c5 80. Kd3 $11) ({Black should try} 78... d5 $1 $17 79. Bd7 Kxf7 (79... Kxd7 $2 80. f8=Q $18) 80. Bxc6 Ke6) 79. Bd7 $15 {[%emt 0:00:10]} c5 {[%emt 0:00:15]} (79... Kxd7 $2 80. f8=Q (80. f8=R Kc7 $17) 80... d5 81. Qg7+ Kd6 82. b4 $18) (79... Kxf7 $15 80. Bxc6 Ke6) 80. Be6 $1 $11 {[%emt 0:00:21]} Bf2 {[%emt 0:01:03]} (80... Kxe6 81. f8=Q (81. f8=R e4 $15) 81... e4 82. Qg8+ Kf6 83. Qd8+ Ke6 84. Qe8+ Kd5 85. Qf7+ Kc6 86. Qe8+ Kd5 87. Qd7 $18) 81. Kd3 {[%emt 0:00:21]} Bh4 {[%emt 0:00:17]} (81... Kxe6 82. f8=Q (82. f8=R Bh4 $15) 82... e4+ 83. Kxe4 (83. Ke2 Bd4 $18) 83... d5+ 84. Kd3 $18) 82. Ke4 {[%emt 0:00:14]} Bg5 {[%emt 0:00:04]} (82... Kxe6 $2 {is the wrong capture.} 83. f8=Q (83. f8=R d5+ 84. Kf3 Be7 $15) 83... d5+ 84. Kf3 $18) 83. Bd5 {[%emt 0:00:11]} Bh6 {[%emt 0:00:04]} 84. Kf5 {[%emt 0:00:04]} Bf8 {[%emt 0:00:23]} 85. Kg6 {[%emt 0:00:49]} Kd7 {[%emt 0:00:11]} 86. Kf6 {[%emt 0:00:17]} Kc7 {[%emt 0:00:11]} 87. Ke6 {[%emt 0:01:36]} Kd8 {[%emt 0:00:16]} 88. Be4 {[%emt 0:00:28]} Kc7 {[%emt 0:00:05]} 1/2-1/2

[Event "Hungarian Super League 2024-25"]
[Site "Hungary"]
[Date "2024.11.02"]
[Round "1.13"]
[White "Juhasz, Agoston"]
[Black "Pezelj, Novak"]
[Result "1/2-1/2"]
[ECO "C11"]
[WhiteElo "2432"]
[BlackElo "2459"]
[Annotator "TA"]
[PlyCount "66"]
[EventDate "2024.10.30"]
[EventType "team-tourn"]
[EventCountry "HUN"]
[SourceTitle "playchess.com"]
[Source "ChessBase"]
[SourceQuality "1"]
[TimeControl "40/5400+30:1800+30"]

{[%evp 14,66,39,27,43,33,44,35,36,2,21,13,30,28,38,58,52,49,64,0,39,37,38,35,67,68,82,56,73,74,183,159,153,184,306,281,305,291,294,0,0,-24,-27,-238,-246,-246,-244,-252,-244,-210,0,-238,0,-231,0]} 1. e4 {[%emt 0:00:34]} e6 {[%emt 0:01:55]} 2. d4 {[%emt 0:00:11]} d5 {[%emt 0:00:08]} 3. Nc3 {[%emt 0:00:18]} Nf6 {[%emt 0:00:36]} 4. Bg5 {[%emt 0:00:42]} dxe4 {[%emt 0:00:51]} 5. Nxe4 {[%emt 0:00:06]} Be7 {[%emt 0:00:04]} 6. Bxf6 {[%emt 0:00:41]} gxf6 {[%emt 0:00:50]} 7. Nf3 {[%emt 0:00:24]} f5 {[%emt 0:05:43]} 8. Nc3 {[%emt 0:00:25]} c5 {[%emt 0:10:00]} 9. d5 {[%emt 0:03:44]} Bf6 {[%emt 0:04:45]} 10. Bc4 {[%emt 0:09:00]} O-O {[%emt 0:15:29] White is slightly better.} 11. dxe6 {[%emt 0:23:42]} Bxe6 {[%emt 0:06:16]} 12. Bxe6 {[%emt 0:02:56]} fxe6 {[%emt 0:01:23]} 13. Qe2 {[%emt 0:02:27]} Qe7 {[%emt 0:01:43]} 14. O-O-O {[%emt 0:07:14]} Nc6 {[%emt 0:01:29]} 15. Rhe1 {[%emt 0:00:31]} Rfe8 {[%emt 0:05:52] [#]} 16. g4 {[%emt 0:05:38]} fxg4 {[%emt 0:18:11]} 17. Rg1 {[%emt 0:00:56][%cal Be1g1,Bg1g4,Bg4e4][%mdl 32]} Kh8 {[%emt 0:02:35]} 18. Rxg4 {[%emt 0:00:23]} Bxc3 {[%emt 0:04:38]} 19. bxc3 {[%emt 0:00:11]} Rg8 {[%emt 0:00:50]} 20. Re4 {[%emt 0:01:53] White is much more active.} Rg6 {[%emt 0:00:09]} 21. h4 {[%emt 0:01:49]} Qf6 {[%emt 0:01:29] [#]} (21... Rf8 $16) 22. Kb2 $1 $18 {[%emt 0:07:13]} Rf8 {[%emt 0:03:47]} 23. Ng5 {[%emt 0:02:35] Black must now prevent Rd7.} e5 {[%emt 0:02:30] [#]} (23... Qxf2 $142 24. Rd7 (24. Nxe6 Rg2 $11) (24. Rxe6 Qxe2 25. Rxe2 h6 $14) 24... Qxe2 25. Rxe2 (25. Rxh7+ Kg8 $17) 25... Na5) 24. f4 $1 {[%emt 0:03:18][%mdl 512]} exf4 {[%emt 0:01:48]} (24... h6 25. fxe5) 25. Rd7 {[%emt 0:02:14][%csl LRb7,LRh7]} Rg7 {[%emt 0:00:56]} 26. Rd3 {[%emt 0:19:24]} (26. Rxf4 $18 Qxf4 27. Rxg7 Qxh4 28. Qg2 (28. Rxh7+ Qxh7 29. Nxh7 Kxh7 $18)) 26... Re7 $11 {[%emt 0:05:44]} 27. Rxe7 {[%emt 0:01:46]} Qxe7 {[%emt 0:00:02]} 28. Qh5 {[%emt 0:00:28]} (28. Qxe7 $11 {and White stays safe.} Nxe7 29. Rd7) 28... Ne5 $19 {[%emt 0:00:36]} 29. Rd5 {[%emt 0:01:22][%cal Od5e5] aiming for Rxe5!} Nc4+ {[%emt 0:00:12]} 30. Kb3 {[%emt 0:00:31]} Na5+ {[%emt 0:01:30]} 31. Kb2 {[%emt 0:00:03]} Nc4+ {[%emt 0:00:48]} 32. Kb3 $1 {[%emt 0:01:21]} Na5+ {[%emt 0:00:01]} 33. Kb2 $1 {[%emt 0:00:48][%cal Od5c5] [#]} Nc4+ $2 {[%emt 0:01:07] Weighted Error Value: White=0.35/Black=0.38.  Loses game:     	White=1     	---        Missed win:     	White=1     	Black=1      Mistake:       	White=1     	Black=2      Inaccurate:     	White=2     	Black=2      OK:         	White=11    	Black=7      Best:        	White=1     	Black=1      Strong:       	White=2     	---} (33... f3 $1 $19 34. Nxf3 Nc4+ 35. Kb3 Nb6 36. Rxc5 Rxf3 37. Qxf3 Qxc5) 1/2-1/2